fUSD/lending_fUSD_20240630
["ID","MTS","AMOUNT","RATE_DAILY","PERIOD"]
[330703431,1719715904393,-906.17,0.00015452,3]
[330703432,1719715904402,-500.0,0.00015561,3]
[330703433,1719715904412,-1106.72,0.00015561,3]
[330703434,1719715904421,-906.17,0.00015561,3]
[330703435,1719715904432,-864.95,0.00015671,3]
[330703436,1719715904441,-500.0,0.00015671,3]
[330703437,1719715904450,-1106.72,0.00015671,3]
[330703438,1719715904460,-906.17,0.00015671,3]
[330703439,1719715904470,-864.95,0.0001578,3]
[330703440,1719715904479,-548.6968627,0.0001578,3]
[330703441,1719715904489,-1106.72,0.0001578,3]
[330703442,1719715904500,-864.95,0.0001589,3]
[330703443,1719715904514,-1106.72,0.0001589,3]
[330703444,1719715904524,-864.95,0.00015999,3]
[330703445,1719715904534,-235.11235371,0.00018,2]
[330703446,1719715904544,-235.11235371,0.00018,2]
[330703447,1719715904553,-235.11235371,0.00018,2]
[330703448,1719715904562,-235.11235371,0.00018,2]
[330703449,1719715904571,-235.11235371,0.00018,2]
[330703450,1719715904581,-235.11235371,0.00018,2]
[330703451,1719715904590,-235.11235371,0.00018,2]
[330703452,1719715904600,-235.11235371,0.00018,2]
[330703453,1719715904610,-235.11235371,0.00018,2]
[330703454,1719715904619,-235.11235371,0.00018,2]
[330703455,1719715904629,-235.11235371,0.00018,2]
[330703456,1719715904639,-235.11235371,0.00018,2]
[330703457,1719715904649,-235.11235371,0.00018,2]
[330703458,1719715904659,-235.11235371,0.00018,2]
[330703459,1719715904668,-151.0,0.00019178,2]
[330703460,1719715904677,-151.0,0.00019178,2]
[330703461,1719715904686,-151.0,0.00019178,2]
[330703462,1719715904696,-211.356383,0.00019178,2]
[330703463,1719715904707,-181342.60005798,0.000211,2]
[330703464,1719715904720,-252.57382991,0.000211,2]
[330703465,1719715905278,-508.85646196,0.00013698,3]
[330703466,1719715905288,-500.0,0.00013698,3]
[330703467,1719715905298,-251.45,0.00013808,3]
[330703468,1719715905308,-620.04,0.00014903,3]
[330703469,1719715905319,-100.59432871,0.00015012,3]
[330703470,1719715905332,-519.44567129,0.00015012,3]
[330703471,1719715905341,-320.79184454,0.00015028,2]
[330703472,1719715905356,-620.04,0.00015122,3]
[330703473,1719715905366,-558.57,0.00015452,3]
[330703474,1719715905377,-558.57,0.00015561,3]
[330703475,1719715905387,-906.17,0.0001578,3]
[330703476,1719715905398,-159.26268463,0.0001589,3]
[330703477,1719715905432,-1011.85473186,0.00013472,2]
[330703483,1719716131837,1877.46721545,0.00011098,2]
[330703484,1719716142990,754.06054418,0.00011098,2]
[330703486,1719716182494,474.91891764,0.00011098,2]
[330703487,1719716183178,348.50212434,0.00011098,2]
[330703488,1719716183471,260.6444492,0.00011098,2]
[330703489,1719716183851,414.37242025,0.00011098,2]
[330703490,1719716186709,1369.03704419,0.00011098,2]
[330703493,1719716231746,155.10345692,0.00011098,2]
[330703494,1719716236198,253.90432169,0.00011098,2]
[330703495,1719716238987,390.6,0.00010995,2]
[330703496,1719716252789,211.56648654,0.00011098,2]
[330703498,1719716267524,441.32379957,0.00011098,2]
[330703499,1719716293384,232.67603997,0.00011098,2]
[330703500,1719716307181,320.93407238,0.00011098,2]
[330703505,1719716489509,754.06054418,0.00011098,2]
[330703506,1719716604307,155.0,0.00011098,2]
[330703507,1719716617938,160.27755311,0.00011098,2]
[330703508,1719716633942,220.33200542,0.00011098,2]
[330703509,1719716706209,348.43472769,0.00011098,2]
[330703510,1719716727479,1902.39925616,0.00011098,2]
[330703511,1719716729925,1905.94611637,0.00011098,2]
[330703514,1719716775182,959.5102985,0.00011098,2]
[330703515,1719716781001,418.74,0.00010272,2]
[330703516,1719716786821,1369.7454259,0.00011098,2]
[330703517,1719716791508,529.19587376,0.00011098,2]
[330703519,1719716822218,348.50212434,0.00011098,2]
[330703520,1719716836298,7588.81671987,0.00011098,2]
[330703521,1719716856182,959.5102985,0.00011098,2]
[330703522,1719716860540,508.48610114,0.00011098,2]
[330703523,1719716916228,348.50212434,0.00011098,2]
[330703524,1719716940418,959.5102985,0.00011098,2]
[330703526,1719716987626,261.34749529,0.00011098,2]
[330703532,1719717004233,348.50212434,0.00011098,2]
[330703533,1719717027205,2898.42826555,0.00011098,2]
[330703548,1719717032218,-227.04865744,0.00011197,2]
[330703549,1719717032228,-227.04865744,0.00011197,2]
[330703550,1719717032237,-300.0,0.00011198,2]
[330703551,1719717032247,-1950.4421618,0.00011199,2]
[330703552,1719717032258,-8032.89337296,0.00011199,2]
[330703553,1719717032270,-15279.65785724,0.00011199,2]
[330703554,1719717032279,-308.06128514,0.00011199,2]
[330703555,1719717032516,-387.37952351,0.00011199,2]
[330703556,1719717032526,-39.97047007,0.00011199,2]
[330703557,1719717032539,-343.4955451,0.00011199,2]
[330703558,1719717032552,-363.40445475,0.00011199,2]
[330703559,1719717032565,-423.02988,0.00011199,2]
[330703560,1719717032581,-1902.25388047,0.00011199,2]
[330703561,1719717032591,-1266.09611953,0.00011199,2]
[330703562,1719717032603,-3227.82274267,0.00011199,2]
[330703563,1719717032614,-36.69666968,0.00012027,2]
[330703566,1719717038177,160.27755311,0.00011099,2]
[330703567,1719717038190,-251.22333032,0.00012027,2]
[330703568,1719717038200,-532.17977983,0.00012302,2]
[330703569,1719717038210,-420.0,0.00012303,2]
[330703570,1719717038220,-484.02884584,0.00012314,2]
[330703571,1719717038229,-250.0,0.0001233,2]
[330703572,1719717038239,-250.0,0.00012338,2]
[330703573,1719717038248,-192.1,0.0001243,2]
[330703574,1719717038257,-160.51,0.0001244,2]
[330703575,1719717038267,-192.1,0.00012464,2]
[330703576,1719717038277,-160.51,0.00012471,2]
[330703577,1719717038287,-880.66929059,0.00012474,2]
[330703578,1719717038297,-880.66929059,0.00012474,2]
[330703579,1719717038308,-2681.76,0.00012487,2]
[330703580,1719717038319,-150.99,0.00012487,2]
[330703581,1719717038329,-166.8,0.00012496,2]
[330703582,1719717038339,-192.1,0.00012498,2]
[330703583,1719717038349,-160.51,0.00012502,2]
[330703584,1719717038359,-192.1,0.00012532,2]
[330703585,1719717038369,-418.74,0.00012536,2]
[330703586,1719717038379,-192.1,0.00012566,2]
[330703587,1719717038388,-192.1,0.000126,2]
[330703588,1719717038398,-192.1,0.00012634,2]
[330703589,1719717038408,-192.1,0.00012668,2]
[330703590,1719717038418,-192.1,0.00012702,2]
[330703591,1719717038428,-200.0,0.00012713,2]
[330703592,1719717038438,-166.79,0.00012732,2]
[330703593,1719717038448,-192.1,0.00012737,2]
[330703594,1719717038458,-192.1,0.00012771,2]
[330703595,1719717038467,-192.1,0.00012805,2]
[330703596,1719717038478,-192.1,0.00012839,2]
[330703598,1719717038487,-192.1,0.00012873,2]
[330703600,1719717038496,-192.1,0.00012907,2]
[330703601,1719717038506,-192.1,0.00012941,2]
[330703603,1719717038516,-1000.0,0.00012942,2]
[330703605,1719717038525,-192.1,0.00012975,2]
[330703607,1719717038534,-192.1,0.00013009,2]
[330703609,1719717038545,-192.1,0.00013043,2]
[330703611,1719717038555,-192.1,0.00013077,2]
[330703613,1719717038566,-277.74016818,0.00013128,2]
[330703615,1719717038584,-499.99,0.00013259,2]
[330703617,1719717038594,-1003.44526479,0.00013324,2]
[330703619,1719717038604,-2568.129,0.00013325,2]
[330703621,1719717038615,-3194.83583148,0.00013325,2]
[330703623,1719717038628,-9525.24153384,0.00013325,2]
[330703626,1719717038641,-11492.04484842,0.00013325,2]
[330703628,1719717038655,-6904.82972179,0.00013325,2]
[330703630,1719717038669,-7479.72096447,0.00013325,2]
[330703632,1719717038680,-171.98,0.00013362,2]
[330703634,1719717038691,-293.65143291,0.00013452,2]
[330703636,1719717038701,-263.94147759,0.00013452,2]
[330703638,1719717038712,-155.38560159,0.00013452,2]
[330703640,1719717038722,-1947.96781196,0.00013452,2]
[330703642,1719717038735,-2366.64168768,0.00013452,2]
[330703644,1719717038746,-560.07765265,0.00013452,2]
[330703646,1719717038758,-1495.53873709,0.00013452,2]
[330703652,1719717038806,-384.49667731,0.00013452,2]
[330703654,1719717038817,-301.52983708,0.00013452,2]
[330703656,1719717038827,-165.09,0.00013452,2]
[330703658,1719717038837,-621.60875247,0.00013452,2]
[330703660,1719717038848,-173.4,0.00013494,2]
[330703662,1719717038858,-587.0,0.00013517,2]
[330703664,1719717038869,-9018.0136,0.00013598,2]
[330703666,1719717038879,-500.0,0.00013598,2]
[330703668,1719717038890,-500.0,0.00013698,3]
[330703670,1719717038899,-500.0,0.00013698,3]
[330703672,1719717038909,-500.0,0.00013698,3]
[330703674,1719717038919,-500.0,0.00013698,3]
[330703676,1719717038928,-500.0,0.00013698,3]
[330703678,1719717038938,-620.81,0.00013698,3]
[330703680,1719717038948,-500.0,0.00013698,3]
[330703682,1719717038957,-507.89969007,0.00013698,3]
[330703684,1719717038968,-682.66,0.00013698,3]
[330703686,1719717038979,-500.0,0.00013698,3]
[330703688,1719717038988,-500.0,0.00013698,3]
[330703690,1719717038997,-500.0,0.00013698,3]
[330703692,1719717039006,-500.0,0.00013698,3]
[330703694,1719717039016,-506.2378341,0.00013698,3]
[330703696,1719717039027,-500.0,0.00013698,3]
[330703698,1719717039040,-500.0,0.00013698,3]
[330703700,1719717039049,-500.0,0.00013698,3]
[330703702,1719717039059,-500.0,0.00013698,3]
[330703704,1719717039069,-500.0,0.00013698,3]
[330703706,1719717039079,-500.0,0.00013698,3]
[330703708,1719717039088,-609.42,0.00013698,3]
[330703710,1719717039098,-500.0,0.00013698,3]
[330703712,1719717039108,-500.0,0.00013698,3]
[330703714,1719717039118,-500.0,0.00013698,3]
[330703716,1719717039128,-507.74873163,0.00013698,3]
[330703718,1719717039138,-500.0,0.00013698,3]
[330703720,1719717039148,-500.0,0.00013698,3]
[330703722,1719717039157,-500.0,0.00013698,3]
[330703724,1719717039167,-500.0,0.00013698,3]
[330703726,1719717039177,-500.0,0.00013698,3]
[330703728,1719717039187,-500.0,0.00013698,3]
[330703730,1719717039197,-500.58252331,0.00013698,2]
[330703732,1719717039207,-851.53,0.00013698,3]
[330703734,1719717039216,-500.0,0.00013698,3]
[330703736,1719717039226,-500.0,0.00013698,3]
[330703738,1719717039237,-500.0,0.00013698,3]
[330703740,1719717039247,-500.0,0.00013698,3]
[330703742,1719717039257,-500.0,0.00013698,3]
[330703744,1719717039266,-621.2,0.00013698,3]
[330703746,1719717039276,-501.89150151,0.00013698,3]
[330703748,1719717039285,-500.0,0.00013698,3]
[330703750,1719717039295,-500.0,0.00013698,3]
[330703752,1719717039304,-500.0,0.00013698,3]
[330703754,1719717039313,-500.0,0.00013698,3]
[330703756,1719717039323,-500.0,0.00013698,3]
[330703758,1719717039332,-500.0,0.00013698,3]
[330703760,1719717039343,-500.0,0.00013698,3]
[330703762,1719717039353,-503.73,0.00013698,3]
[330703765,1719717039363,-500.0,0.00013698,3]
[330703766,1719717039373,-1462.6,0.00013698,3]
[330703769,1719717039384,-575.12,0.00013698,3]
[330703770,1719717039394,-3913.083,0.00013698,2]
[330703772,1719717039404,-500.0,0.00013698,3]
[330703774,1719717039414,-500.0,0.00013698,3]
[330703776,1719717039423,-500.0,0.00013698,3]
[330703778,1719717039432,-500.0,0.00013698,3]
[330703780,1719717039442,-614.71,0.00013698,3]
[330703781,1719717039452,-500.0,0.00013698,3]
[330703782,1719717039462,-500.0,0.00013698,3]
[330703783,1719717039472,-500.0,0.00013698,3]
[330703784,1719717039483,-500.0,0.00013698,3]
[330703785,1719717039494,-500.0,0.00013698,3]
[330703786,1719717039505,-500.0,0.00013698,3]
[330703787,1719717039516,-613.89,0.00013698,3]
[330703788,1719717039527,-500.0,0.00013698,3]
[330703789,1719717039538,-500.0,0.00013698,3]
[330703790,1719717039548,-595.24,0.00013698,3]
[330703792,1719717039558,-500.0,0.00013698,3]
[330703794,1719717039568,-500.0,0.00013698,3]
[330703796,1719717039581,-500.0,0.00013698,3]
[330703798,1719717039591,-506.143098,0.00013698,3]
[330703800,1719717039601,-509.12688298,0.00013698,3]
[330703802,1719717039612,-500.0,0.00013698,3]
[330703804,1719717039621,-506.04378983,0.00013698,3]
[330703806,1719717039631,-504.45739639,0.00013698,3]
[330703808,1719717039641,-500.0,0.00013698,3]
[330703810,1719717039650,-500.0,0.00013698,3]
[330703812,1719717039663,-500.0,0.00013698,3]
[330703814,1719717039673,-500.0,0.00013698,3]
[330703816,1719717039683,-609.86,0.00013698,3]
[330703818,1719717039693,-500.0,0.00013698,3]
[330703820,1719717039702,-361.66722291,0.00013698,3]
[330703822,1719717039712,-500.0,0.00013698,3]
[330703824,1719717039722,-500.0,0.00013698,3]
[330703826,1719717039732,-500.0,0.00013698,3]
[330703828,1719717039741,-500.0,0.00013698,3]
[330703830,1719717039751,-500.0,0.00013698,3]
[330703832,1719717039761,-500.0,0.00013698,3]
[330703834,1719717039771,-500.0,0.00013698,3]
[330703836,1719717039781,-505.84391463,0.00013698,3]
[330703838,1719717039791,-500.0,0.00013698,3]
[330703840,1719717039801,-3513.08,0.00013698,3]
[330703842,1719717039810,-392.70857195,0.00013698,3]
[330703844,1719717039820,-500.0,0.00013698,3]
[330703846,1719717039830,-501.63588829,0.00013698,3]
[330703848,1719717039839,-500.0,0.00013698,3]
[330703850,1719717039849,-500.0,0.00013698,3]
[330703852,1719717039858,-500.0,0.00013698,3]
[330703854,1719717039868,-510.86586663,0.00013698,3]
[330703856,1719717039878,-500.0,0.00013698,3]
[330703858,1719717039888,-500.0,0.00013698,3]
[330703860,1719717039897,-500.0,0.00013698,3]
[330703862,1719717039907,-500.0,0.00013698,3]
[330703864,1719717039917,-500.0,0.00013698,3]
[330703867,1719717039926,-500.0,0.00013698,3]
[330703869,1719717039936,-500.0,0.00013698,3]
[330703871,1719717039945,-500.0,0.00013698,3]
[330703873,1719717039954,-500.0,0.00013698,3]
[330703874,1719717039964,-500.0,0.00013698,3]
[330703877,1719717039974,-500.0,0.00013698,3]
[330703879,1719717039984,-500.0,0.00013698,3]
[330703881,1719717039995,-500.0,0.00013698,3]
[330703882,1719717040005,-525.93,0.00013698,3]
[330703884,1719717040014,-500.0,0.00013698,3]
[330703886,1719717040024,-500.0,0.00013698,3]
[330703888,1719717040034,-648.03,0.00013698,3]
[330703890,1719717040045,-189.06,0.00013699,2]
[330703893,1719717040056,-267.04,0.00013699,2]
[330703895,1719717040066,-2751.0,0.00013699,2]
[330703896,1719717040076,-10000.0,0.00013699,2]
[330703899,1719717040087,-500.0,0.00013702,2]
[330703901,1719717040096,-600.0,0.00013702,2]
[330703903,1719717040107,-500.0,0.00013702,2]
[330703904,1719717040116,-500.0,0.00013702,2]
[330703907,1719717040126,-1029.37517173,0.00013746,2]
[330703908,1719717040136,-500.0,0.00013789,3]
[330703911,1719717040147,-500.0,0.00013789,3]
[330703913,1719717040156,-1205.75,0.00013789,3]
[330703914,1719717040166,-500.0,0.00013789,3]
[330703916,1719717040176,-500.0,0.00013789,3]
[330703919,1719717040186,-500.0,0.00013789,3]
[330703920,1719717040195,-614.99,0.00013789,3]
[330703923,1719717040206,-500.0,0.00013789,3]
[330703924,1719717040215,-500.0,0.00013789,3]
[330703927,1719717040225,-500.0,0.00013789,3]
[330703929,1719717040235,-2039.35,0.00013789,3]
[330703930,1719717040245,-500.0,0.00013789,3]
[330703932,1719717040256,-500.0,0.00013789,3]
[330703936,1719717040267,-500.0,0.00013789,3]
[330703938,1719717040277,-65820.66235456,0.0001379,2]
[330703940,1719717040287,-500.0,0.00013807,3]
[330703942,1719717040298,-500.0,0.00013807,3]
[330703944,1719717040308,-504.5586789,0.00013807,3]
[330703946,1719717040317,-500.0,0.00013807,3]
[330703948,1719717040327,-500.0,0.00013807,3]
[330703950,1719717040337,-549.29829486,0.00013807,3]
[330703952,1719717040347,-500.0,0.00013807,3]
[330703954,1719717040357,-500.0,0.00013807,3]
[330703956,1719717040367,-500.0,0.00013807,3]
[330703958,1719717040376,-500.0,0.00013807,3]
[330703960,1719717040387,-500.0,0.00013807,3]
[330703962,1719717040397,-500.0,0.00013808,3]
[330703964,1719717040407,-500.0,0.00013808,3]
[330703966,1719717040417,-500.0,0.00013808,3]
[330703968,1719717040427,-500.0,0.00013808,3]
[330703970,1719717040437,-500.0,0.00013808,3]
[330703972,1719717040447,-500.0,0.00013808,3]
[330703974,1719717040457,-682.66,0.00013808,3]
[330703976,1719717040467,-500.0,0.00013808,3]
[330703978,1719717040477,-170.04,0.00013808,3]
[330703980,1719717040487,-500.0,0.00013808,3]
[330703982,1719717040496,-584.67,0.00013808,3]
[330703984,1719717040506,-547.34,0.00013808,3]
[330703986,1719717040516,-851.53,0.00013808,3]
[330703988,1719717040526,-249.55,0.00013808,3]
[330703990,1719717040536,-500.0,0.00013808,3]
[330703992,1719717040547,-500.0,0.00013808,3]
[330703994,1719717040556,-500.0,0.00013808,3]
[330703996,1719717040566,-532.93,0.00013808,3]
[330703998,1719717040578,-286.94,0.00013808,3]
[330704000,1719717040590,-500.0,0.00013808,3]
[330704002,1719717040600,-1462.6,0.00013808,3]
[330704004,1719717040609,-534.52,0.00013808,3]
[330704006,1719717040621,-500.0,0.00013808,3]
[330704008,1719717040631,-613.89,0.00013808,3]
[330704010,1719717040640,-500.0,0.00013808,3]
[330704012,1719717040650,-500.0,0.00013808,3]
[330704014,1719717040662,-500.0,0.00013808,3]
[330704016,1719717040672,-500.0,0.00013808,3]
[330704018,1719717040681,-500.0,0.00013808,3]
[330704020,1719717040691,-500.0,0.00013808,3]
[330704022,1719717040700,-3513.08,0.00013808,3]
[330704024,1719717040710,-500.0,0.00013808,3]
[330704026,1719717040720,-500.0,0.00013808,3]
[330704028,1719717040729,-159.32309766,0.00013808,3]
[330704030,1719717040738,-500.0,0.00013808,3]
[330704032,1719717040748,-165.61,0.00013808,3]
[330704034,1719717040758,-500.0,0.00013808,3]
[330704036,1719717040767,-500.0,0.00013808,3]
[330704038,1719717040777,-500.0,0.00013808,3]
[330704040,1719717040786,-407.61,0.00013808,3]
[330704042,1719717040796,-5521.8221,0.00013817,2]
[330704044,1719717040805,-6452.7179,0.00013817,2]
[330704046,1719717040814,-198.02223651,0.00013817,2]
[330704048,1719717040824,-251.0,0.00013855,2]
[330704050,1719717040834,-633.43833024,0.00013889,2]
[330704052,1719717040843,-500.0,0.00013899,3]
[330704054,1719717040852,-500.0,0.00013899,3]
[330704056,1719717040861,-1205.75,0.00013899,3]
[330704058,1719717040871,-500.0,0.00013899,3]
[330704060,1719717040880,-500.0,0.00013899,3]
[330704062,1719717040889,-500.0,0.00013899,3]
[330704064,1719717040899,-614.99,0.00013899,3]
[330704066,1719717040908,-500.0,0.00013899,3]
[330704068,1719717040917,-500.0,0.00013899,3]
[330704069,1719717040926,-500.0,0.00013899,3]
[330704071,1719717040935,-2039.35,0.00013899,3]
[330704074,1719717040945,-500.0,0.00013899,3]
[330704075,1719717040953,-500.0,0.00013899,3]
[330704077,1719717040962,-500.0,0.00013916,3]
[330704078,1719717040972,-500.0,0.00013916,3]
[330704079,1719717040981,-500.0,0.00013916,3]
[330704080,1719717040991,-500.0,0.00013916,3]
[330704081,1719717041001,-500.0,0.00013916,3]
[330704082,1719717041010,-500.0,0.00013916,3]
[330704083,1719717041020,-500.0,0.00013916,3]
[330704084,1719717041032,-500.0,0.00013916,3]
[330704085,1719717041042,-500.0,0.00013916,3]
[330704087,1719717041051,-500.0,0.00013916,3]
[330704089,1719717041061,-500.0,0.00013916,3]
[330704091,1719717041071,-500.0,0.00013916,3]
[330704093,1719717041080,-500.0,0.00013916,3]
[330704095,1719717041090,-500.0,0.00013916,3]
[330704097,1719717041099,-500.0,0.00013916,3]
[330704099,1719717041108,-500.0,0.00013916,3]
[330704101,1719717041118,-500.0,0.00013916,3]
[330704103,1719717041127,-500.0,0.00013916,3]
[330704105,1719717041136,-500.0,0.00013916,3]
[330704107,1719717041146,-500.0,0.00013916,3]
[330704109,1719717041155,-500.0,0.00013916,3]
[330704111,1719717041164,-500.0,0.00013916,3]
[330704113,1719717041174,-500.0,0.00013916,3]
[330704115,1719717041183,-500.0,0.00013916,3]
[330704117,1719717041192,-561.12,0.00013916,3]
[330704119,1719717041202,-500.0,0.00013916,3]
[330704121,1719717041211,-245.20819908,0.00013916,3]
[330704123,1719717041221,-500.0,0.00013916,3]
[330704125,1719717041230,-500.0,0.00013916,3]
[330704127,1719717041239,-500.0,0.00013916,3]
[330704129,1719717041249,-500.0,0.00013916,3]
[330704131,1719717041258,-155.73,0.00013916,3]
[330704133,1719717041269,-500.0,0.00013916,3]
[330704135,1719717041280,-524.56,0.00013916,3]
[330704137,1719717041290,-500.0,0.00013916,3]
[330704140,1719717041299,-500.0,0.00013916,3]
[330704142,1719717041309,-500.0,0.00013916,3]
[330704143,1719717041318,-500.0,0.00013916,3]
[330704146,1719717041328,-500.0,0.00013916,3]
[330704147,1719717041337,-500.0,0.00013916,3]
[330704149,1719717041347,-500.0,0.00013916,3]
[330704151,1719717041356,-397.81405925,0.00013916,3]
[330704154,1719717041366,-324.92711761,0.00013916,3]
[330704156,1719717041376,-500.0,0.00013916,3]
[330704157,1719717041385,-500.0,0.00013916,3]
[330704160,1719717041395,-500.0,0.00013916,3]
[330704161,1719717041404,-500.0,0.00013916,3]
[330704163,1719717041414,-500.0,0.00013916,3]
[330704165,1719717041423,-500.0,0.00013916,3]
[330704167,1719717041432,-292.73137895,0.00013916,3]
[330704169,1719717041441,-500.0,0.00013916,3]
[330704171,1719717041450,-500.0,0.00013916,3]
[330704173,1719717041459,-500.0,0.00013916,3]
[330704175,1719717041469,-500.0,0.00013916,2]
[330704177,1719717041478,-508.33216048,0.00013916,3]
[330704179,1719717041487,-500.0,0.00013916,3]
[330704181,1719717041496,-509.12552153,0.00013916,3]
[330704183,1719717041506,-500.0,0.00013916,3]
[330704185,1719717041515,-508.55012471,0.00013916,3]
[330704187,1719717041525,-504.60527452,0.00013916,3]
[330704189,1719717041534,-500.0,0.00013916,3]
[330704191,1719717041545,-560.3,0.00013916,3]
[330704193,1719717041554,-500.0,0.00013916,3]
[330704195,1719717041563,-500.0,0.00013916,3]
[330704197,1719717041576,-500.0,0.00013916,3]
[330704199,1719717041585,-500.0,0.00013916,3]
[330704201,1719717041595,-500.0,0.00013916,3]
[330704203,1719717041604,-496.67106187,0.00013916,3]
[330704205,1719717041613,-507.69817141,0.00013916,3]
[330704207,1719717041623,-500.0,0.00013916,3]
[330704209,1719717041632,-506.81860417,0.00013916,3]
[330704211,1719717041642,-500.0,0.00013916,3]
[330704213,1719717041652,-508.07806796,0.00013916,3]
[330704215,1719717041662,-510.26959603,0.00013916,3]
[330704217,1719717041671,-500.0,0.00013916,3]
[330704219,1719717041680,-500.0,0.00013916,3]
[330704221,1719717041690,-508.8689782,0.00013916,3]
[330704223,1719717041700,-500.0,0.00013916,3]
[330704225,1719717041709,-500.0,0.00013916,3]
[330704227,1719717041719,-500.0,0.00013916,3]
[330704229,1719717041728,-500.0,0.00013916,3]
[330704231,1719717041737,-500.0,0.00013916,3]
[330704233,1719717041747,-500.0,0.00013916,3]
[330704235,1719717041756,-500.0,0.00013916,3]
[330704237,1719717041765,-500.0,0.00013916,3]
[330704239,1719717041774,-500.0,0.00013916,3]
[330704241,1719717041783,-500.0,0.00013916,3]
[330704243,1719717041794,-500.0,0.00013916,3]
[330704245,1719717041805,-500.0,0.00013916,3]
[330704247,1719717041814,-500.0,0.00013916,3]
[330704249,1719717041826,-500.0,0.00013916,3]
[330704251,1719717041834,-500.0,0.00013916,3]
[330704253,1719717041843,-575.37,0.00013916,3]
[330704254,1719717041852,-500.0,0.00013916,3]
[330704256,1719717041861,-500.0,0.00013916,3]
[330704278,1719717042054,-507.21433059,0.00013916,3]
[330704281,1719717042064,-508.90959194,0.00013916,3]
[330704282,1719717042074,-508.19963254,0.00013916,3]
[330704284,1719717042083,-500.0,0.00013916,3]
[330704286,1719717042092,-500.0,0.00013916,3]
[330704288,1719717042102,-500.0,0.00013916,3]
[330704291,1719717042111,-509.08225958,0.00013916,3]
[330704292,1719717042121,-500.0,0.00013916,3]
[330704294,1719717042131,-508.40714595,0.00013916,3]
[330704297,1719717042140,-500.0,0.00013916,3]
[330704299,1719717042150,-500.0,0.00013916,3]
[330704300,1719717042159,-500.0,0.00013916,3]
[330704302,1719717042168,-500.0,0.00013916,3]
[330704304,1719717042177,-500.0,0.00013916,3]
[330704306,1719717042186,-500.0,0.00013916,3]
[330704308,1719717042195,-500.0,0.00013916,3]
[330704310,1719717042205,-500.0,0.00013916,3]
[330704312,1719717042215,-500.0,0.00013916,3]
[330704314,1719717042224,-500.0,0.00013916,3]
[330704316,1719717042233,-500.0,0.00013916,3]
[330704318,1719717042243,-500.0,0.00013916,3]
[330704320,1719717042252,-508.79766829,0.00013916,3]
[330704322,1719717042261,-500.0,0.00013916,3]
[330704324,1719717042271,-500.0,0.00013916,3]
[330704327,1719717042281,-500.0,0.00013916,3]
[330704328,1719717042290,-500.0,0.00013916,3]
[330704329,1719717042299,-500.0,0.00013916,3]
[330704330,1719717042308,-500.0,0.00013916,3]
[330704331,1719717042317,-500.0,0.00013916,3]
[330704332,1719717042326,-500.0,0.00013916,3]
[330704333,1719717042335,-500.0,0.00013916,3]
[330704334,1719717042345,-500.0,0.00013916,3]
[330704335,1719717042354,-500.0,0.00013916,3]
[330704336,1719717042363,-500.0,0.00013916,3]
[330704338,1719717042375,-500.0,0.00013916,3]